fUST/lending_fUST_20240830
["ID","MTS","AMOUNT","RATE_DAILY","PERIOD"]
[336631621,1724983849356,-596.7,0.00021095,2]
[336631622,1724983849365,-633.89421856,0.00021095,2]
[336631623,1724983849375,-732.32,0.00021095,2]
[336631624,1724983849385,-1028.9,0.00021095,2]
[336631625,1724983849395,-528.46,0.00021095,2]
[336631626,1724983849405,-500.0,0.00021095,2]
[336631627,1724983849415,-500.0,0.00021095,2]
[336631628,1724983849424,-584.53,0.00021095,2]
[336631629,1724983849434,-500.0,0.00021095,2]
[336631630,1724983849444,-558.86,0.00021095,2]
[336631631,1724983849454,-229.7284344,0.00021095,2]
[336631632,1724983849464,-1600.8,0.00021095,2]
[336631633,1724983849475,-500.0,0.00021095,2]
[336631634,1724983849484,-514.67,0.00021095,2]
[336631635,1724983849494,-722.8,0.00021095,2]
[336631636,1724983849504,-500.0,0.00021095,2]
[336631637,1724983849513,-749.96,0.00021095,2]
[336631638,1724983849523,-500.0,0.00021095,2]
[336631639,1724983849532,-500.0,0.00021095,2]
[336631640,1724983849542,-2936.91,0.00021095,2]
[336631641,1724983849561,-500.0,0.00021095,2]
[336631642,1724983849570,-538.9,0.00021095,2]
[336631643,1724983849580,-4606.99,0.00021095,2]
[336631644,1724983849589,-1984.15,0.00021095,2]
[336631645,1724983849598,-500.0,0.00021095,2]
[336631646,1724983849608,-500.0,0.00021095,2]
[336631647,1724983849618,-636.04,0.00021095,2]
[336631648,1724983849627,-500.0,0.00021095,2]
[336631649,1724983849638,-1566.77,0.00021095,2]
[336631650,1724983849647,-517.98,0.00021095,2]
[336631651,1724983849658,-500.0,0.00021095,2]
[336631652,1724983849668,-509.88985672,0.00021095,2]
[336631653,1724983849678,-500.0,0.00021095,2]
[336631654,1724983849688,-500.0,0.00021095,2]
[336631655,1724983849699,-1831.81,0.00021095,2]
[336631656,1724983849709,-1072.33,0.00021095,2]
[336631657,1724983849719,-542.43,0.00021095,2]
[336631658,1724983849730,-1282.53,0.00021095,2]
[336631659,1724983849741,-743.43,0.00021095,2]
[336631660,1724983849752,-1221.57,0.00021095,2]
[336631661,1724983849763,-1461.81,0.00021095,2]
[336631662,1724983849773,-2207.85,0.00021095,2]
[336631663,1724983849784,-4413.6,0.00021095,2]
[336631664,1724983849798,-500.0,0.00021095,2]
[336631665,1724983849809,-2474.75,0.00021095,2]
[336631666,1724983849818,-500.0,0.00021095,2]
[336631667,1724983849828,-1055.64,0.000211,2]
[336631668,1724983849838,-150.112233,0.000211,5]
[336631669,1724983849849,-3000.0,0.000211,2]
[336631670,1724983849859,-1000.0,0.000211,2]
[336631671,1724983849869,-3000.0,0.0002111,2]
[336631672,1724983849879,-151.0,0.0002111,2]
[336631673,1724983849889,-3000.0,0.0002112,2]
[336631674,1724983849898,-1000.0,0.00021127,2]
[336631675,1724983849908,-3000.0,0.0002113,2]
[336631676,1724983849918,-3000.0,0.0002114,2]
[336631677,1724983849928,-4998.804598,0.0002115,2]
[336631678,1724983849942,-1000.0,0.00021173,2]
[336631679,1724983849953,-300.0,0.00021184,2]
[336631680,1724983849963,-151.0,0.00021199,2]
[336631681,1724983849974,-230.069897,0.000212,4]
[336631682,1724983849985,-150.112233,0.000212,4]
[336631683,1724983849994,-1000.0,0.00021203,2]
[336631684,1724983850004,-1000.0,0.00021208,2]
[336631685,1724983850013,-1000.0,0.00021214,2]
[336631686,1724983850022,-1500.0,0.00021219,2]
[336631687,1724983850032,-154.884193,0.00021238,2]
[336631688,1724983850045,-1000.0,0.00021276,2]
[336631689,1724983850055,-1000.0,0.00021301,2]
[336631690,1724983850065,-304.94148291,0.00021301,2]
[336631691,1724983850076,-1000.0,0.00021311,2]
[336631692,1724983850086,-357.04984704,0.00021311,2]
[336631693,1724983850096,-1000.0,0.00021342,2]
[336631694,1724983850105,-1000.0,0.00021348,2]
[336631695,1724983850117,-1000.0,0.00021353,2]
[336631696,1724983850129,-587.0,0.00021359,2]
[336631697,1724983850138,-235.776794,0.00021368,2]
[336631698,1724983850148,-1507.82728885,0.00021368,2]
[336631699,1724983850158,-1000.0,0.00021368,2]
[336631700,1724983850167,-500.0,0.00021369,2]
[336631701,1724983850178,-500.0,0.00021369,2]
[336631702,1724983850188,-500.0,0.00021369,2]
[336631703,1724983850197,-829.52,0.00021369,2]
[336631704,1724983850209,-500.0,0.00021369,2]
[336631705,1724983850218,-500.0,0.00021369,2]
[336631706,1724983850228,-718.95,0.00021369,2]
[336631707,1724983850238,-500.0,0.00021369,2]
[336631708,1724983850247,-500.0,0.00021369,2]
[336631709,1724983850256,-624.21,0.00021369,2]
[336631710,1724983850266,-500.0,0.00021369,2]
[336631711,1724983850276,-811.43,0.00021369,2]
[336631712,1724983850285,-650.46,0.00021369,2]
[336631713,1724983850296,-674.29,0.00021369,2]
[336631714,1724983850306,-500.0,0.00021369,2]
[336631715,1724983850315,-2372.91,0.00021369,2]
[336631716,1724983850325,-7565.24,0.00021369,2]
[336631717,1724983850335,-500.0,0.00021369,2]
[336631718,1724983850344,-544.68,0.00021369,2]
[336631719,1724983850354,-2711.47,0.00021369,2]
[336631720,1724983850364,-1810.15,0.00021369,2]
[336631721,1724983850374,-500.0,0.00021369,2]
[336631722,1724983850387,-500.0,0.00021369,2]
[336631723,1724983850397,-596.7,0.00021369,2]
[336631724,1724983850407,-732.32,0.00021369,2]
[336631725,1724983850418,-1028.9,0.00021369,2]
[336631726,1724983850428,-528.46,0.00021369,2]
[336631727,1724983850438,-500.0,0.00021369,2]
[336631728,1724983850449,-186.17495432,0.00021369,2]
[336631729,1724983850458,-584.53,0.00021369,2]
[336631730,1724983850468,-500.0,0.00021369,2]
[336631731,1724983850478,-500.0,0.00021369,2]
[336631732,1724983850488,-558.86,0.00021369,2]
[336631733,1724983850498,-1600.8,0.00021369,2]
[336631734,1724983850508,-500.0,0.00021369,2]
[336631735,1724983850518,-514.67,0.00021369,2]
[336631736,1724983850528,-722.8,0.00021369,2]
[336631737,1724983850538,-500.0,0.00021369,2]
[336631738,1724983850549,-749.96,0.00021369,2]
[336631739,1724983850560,-500.0,0.00021369,2]
[336631740,1724983850570,-500.0,0.00021369,2]
[336631741,1724983850581,-2936.91,0.00021369,2]
[336631742,1724983850592,-500.0,0.00021369,2]
[336631743,1724983850603,-538.9,0.00021369,2]
[336631744,1724983850615,-4606.99,0.00021369,2]
[336631745,1724983850627,-1984.15,0.00021369,2]
[336631746,1724983850638,-500.0,0.00021369,2]
[336631747,1724983850649,-500.0,0.00021369,2]
[336631748,1724983850660,-636.04,0.00021369,2]
[336631749,1724983850670,-1566.77,0.00021369,2]
[336631750,1724983850681,-517.98,0.00021369,2]
[336631751,1724983850693,-257.46248958,0.00021369,2]
[336631752,1724983850704,-500.0,0.00021369,2]
[336631753,1724983850715,-500.0,0.00021369,2]
[336631754,1724983850726,-1831.81,0.00021369,2]
[336631755,1724983850738,-480.88679011,0.00021369,2]
[336631756,1724983850749,-1072.33,0.00021369,2]
[336631757,1724983850759,-542.43,0.00021369,2]
[336631758,1724983850771,-1282.53,0.00021369,2]
[336631759,1724983850782,-743.43,0.00021369,2]
[336631760,1724983850796,-1221.57,0.00021369,2]
[336631761,1724983850807,-1461.81,0.00021369,2]
[336631762,1724983850817,-2207.85,0.00021369,2]
[336631763,1724983850827,-4413.6,0.00021369,2]
[336631764,1724983850837,-500.0,0.00021369,2]
[336631765,1724983850847,-2474.75,0.00021369,2]
[336631766,1724983850858,-500.0,0.00021369,2]
[336631767,1724983850868,-150.112233,0.000214,4]
[336631768,1724983850877,-918.8,0.000214,2]
[336631769,1724983850888,-150.112233,0.000214,3]
[336631770,1724983850897,-300.399,0.00021465,2]
[336631771,1724983850909,-150.182,0.00021465,2]
[336631772,1724983850920,-150.112233,0.000215,5]
[336631773,1724983850932,-150.112233,0.000215,2]
[336631774,1724983850943,-500.0,0.00021643,2]
[336631775,1724983850954,-500.0,0.00021643,2]
[336631776,1724983850965,-500.0,0.00021643,2]
[336631777,1724983850974,-829.52,0.00021643,2]
[336631778,1724983850984,-500.0,0.00021643,2]
[336631779,1724983850994,-500.0,0.00021643,2]
[336631780,1724983851003,-718.95,0.00021643,2]
[336631781,1724983851013,-500.0,0.00021643,2]
[336631782,1724983851024,-500.0,0.00021643,2]
[336631783,1724983851035,-624.21,0.00021643,2]
[336631784,1724983851047,-500.0,0.00021643,2]
[336631785,1724983851056,-811.43,0.00021643,2]
[336631786,1724983851066,-151.0,0.00021643,2]
[336631787,1724983851076,-650.46,0.00021643,2]
[336631788,1724983851086,-674.29,0.00021643,2]
[336631789,1724983851097,-500.0,0.00021643,2]
[336631790,1724983851107,-224.557564,0.00021643,2]
[336631791,1724983851116,-2372.91,0.00021643,2]
[336631792,1724983851127,-7565.24,0.00021643,2]
[336631793,1724983851138,-388.02035123,0.00021643,2]
[336631794,1724983851148,-544.68,0.00021643,2]
[336631795,1724983851158,-2711.47,0.00021643,2]
[336631796,1724983851167,-1810.15,0.00021643,2]
[336631797,1724983851176,-500.0,0.00021643,2]
[336631798,1724983851186,-500.0,0.00021643,2]
[336631799,1724983851196,-596.7,0.00021643,2]
[336631800,1724983851206,-732.32,0.00021643,2]
[336631801,1724983851216,-1028.9,0.00021643,2]
[336631802,1724983851226,-528.46,0.00021643,2]
[336631803,1724983851236,-500.0,0.00021643,2]
[336631804,1724983851245,-584.53,0.00021643,2]
[336631805,1724983851256,-500.0,0.00021643,2]
[336631806,1724983851266,-558.86,0.00021643,2]
[336631807,1724983851276,-1600.8,0.00021643,2]
[336631808,1724983851285,-500.0,0.00021643,2]
[336631809,1724983851296,-514.67,0.00021643,2]
[336631810,1724983851306,-722.8,0.00021643,2]
[336631811,1724983851315,-500.0,0.00021643,2]
[336631812,1724983851325,-500.0,0.00021643,2]
[336631813,1724983851334,-749.96,0.00021643,2]
[336631814,1724983851343,-500.0,0.00021643,2]
[336631815,1724983851353,-2936.91,0.00021643,2]
[336631816,1724983851363,-500.0,0.00021643,2]
[336631817,1724983851372,-538.9,0.00021643,2]
[336631818,1724983851381,-4606.99,0.00021643,2]
[336631819,1724983851391,-1984.15,0.00021643,2]
[336631820,1724983851401,-500.0,0.00021643,2]
[336631821,1724983851411,-500.0,0.00021643,2]
[336631822,1724983851421,-636.04,0.00021643,2]
[336631823,1724983851430,-1566.77,0.00021643,2]
[336631824,1724983851441,-517.98,0.00021643,2]
[336631825,1724983851450,-614.23557563,0.00021643,2]
[336631826,1724983851460,-500.0,0.00021643,2]
[336631827,1724983851470,-1831.81,0.00021643,2]
[336631828,1724983851479,-1072.33,0.00021643,2]
[336631829,1724983851489,-542.43,0.00021643,2]
[336631830,1724983851499,-1282.53,0.00021643,2]
[336631831,1724983851509,-743.43,0.00021643,2]
[336631832,1724983851519,-1221.57,0.00021643,2]
[336631833,1724983851529,-1461.81,0.00021643,2]
[336631834,1724983851540,-151.0,0.00021643,2]
[336631835,1724983851551,-2207.85,0.00021643,2]
[336631836,1724983851561,-4413.6,0.00021643,2]
[336631837,1724983851572,-500.0,0.00021643,2]
[336631838,1724983851582,-2474.75,0.00021643,2]
[336631839,1724983851592,-500.0,0.00021643,2]
[336631840,1724983851601,-150.112233,0.000217,2]
[336631841,1724983851611,-500.0,0.00021781,2]
[336631842,1724983851620,-500.0,0.00021783,2]
[336631843,1724983851630,-3050.10937296,0.00021787,5]
[336631844,1724983851640,-50000.0,0.00021788,2]
[336631845,1724983851650,-158.926326,0.00021788,2]
[336631846,1724983851659,-150.112233,0.000218,2]
[336631847,1724983851669,-169.192433,0.00021868,2]
[336631848,1724983851678,-695.387899,0.00021868,2]
[336631849,1724983851687,-500.0,0.00021917,2]
[336631850,1724983851697,-500.0,0.00021917,2]
[336631851,1724983851708,-500.0,0.00021917,2]
[336631852,1724983851718,-829.52,0.00021917,2]
[336631853,1724983851728,-500.0,0.00021917,2]
[336631854,1724983851738,-500.0,0.00021917,2]
[336631855,1724983851748,-718.95,0.00021917,2]
[336631856,1724983851757,-500.0,0.00021917,2]
[336631857,1724983851767,-500.0,0.00021917,2]
[336631858,1724983851777,-624.21,0.00021917,2]
[336631859,1724983851787,-500.0,0.00021917,2]
[336631860,1724983851798,-811.43,0.00021917,2]
[336631861,1724983851807,-650.46,0.00021917,2]
[336631862,1724983851818,-674.29,0.00021917,2]
[336631863,1724983851828,-500.0,0.00021917,2]
[336631864,1724983851841,-2372.91,0.00021917,2]
[336631865,1724983851851,-7565.24,0.00021917,2]
[336631866,1724983851863,-544.68,0.00021917,2]
[336631867,1724983851873,-2711.47,0.00021917,2]
[336631868,1724983851886,-1810.15,0.00021917,2]
[336631869,1724983851896,-500.0,0.00021917,2]
[336631870,1724983851906,-500.0,0.00021917,2]
[336631871,1724983851917,-596.7,0.00021917,2]
[336631872,1724983851928,-732.32,0.00021917,2]
[336631873,1724983851939,-1028.9,0.00021917,2]
[336631874,1724983851950,-528.46,0.00021917,2]
[336631875,1724983851959,-500.0,0.00021917,2]
[336631876,1724983851969,-1000.0,0.00021917,30]
[336631877,1724983851980,-1000.0,0.00021917,30]
[336631878,1724983851990,-1000.0,0.00021917,30]
[336631879,1724983852000,-1000.0,0.00021917,30]
[336631880,1724983852009,-1000.0,0.00021917,30]
[336631881,1724983852019,-511.3847793,0.00021917,30]
[336631882,1724983852028,-584.53,0.00021917,2]
[336631883,1724983852038,-500.0,0.00021917,2]
[336631884,1724983852049,-558.86,0.00021917,2]
[336631885,1724983852058,-1600.8,0.00021917,2]
[336631886,1724983852068,-500.0,0.00021917,2]
[336631887,1724983852077,-514.67,0.00021917,2]
[336631888,1724983852087,-722.8,0.00021917,2]
[336631889,1724983852096,-500.0,0.00021917,2]
[336631890,1724983852106,-500.0,0.00021917,2]
[336631891,1724983852117,-749.96,0.00021917,2]
[336631892,1724983852128,-500.0,0.00021917,2]
[336631893,1724983852139,-2936.91,0.00021917,2]
[336631894,1724983852149,-500.0,0.00021917,2]
[336631895,1724983852160,-538.9,0.00021917,2]
[336631896,1724983852171,-4606.99,0.00021917,2]
[336631897,1724983852181,-1984.15,0.00021917,2]
[336631898,1724983852191,-500.0,0.00021917,2]
[336631899,1724983852201,-500.0,0.00021917,2]
[336631900,1724983852214,-636.04,0.00021917,2]
[336631901,1724983852226,-1566.77,0.00021917,2]
[336631902,1724983852238,-517.98,0.00021917,2]
[336631903,1724983852248,-500.0,0.00021917,2]
[336631904,1724983852258,-1831.81,0.00021917,2]
[336631905,1724983852268,-1072.33,0.00021917,2]
[336631906,1724983852278,-542.43,0.00021917,2]
[336631907,1724983852288,-1282.53,0.00021917,2]
[336631908,1724983852300,-743.43,0.00021917,2]
[336631909,1724983852310,-1221.57,0.00021917,2]
[336631910,1724983852320,-1461.81,0.00021917,2]
[336631911,1724983852330,-151.0,0.00021917,2]
[336631912,1724983852340,-2207.85,0.00021917,2]
[336631913,1724983852351,-4413.6,0.00021917,2]
[336631914,1724983852361,-500.0,0.00021917,2]
[336631915,1724983852371,-2474.75,0.00021917,2]
[336631916,1724983852380,-500.0,0.00021917,2]
[336631917,1724983852390,-151.0,0.00021918,2]
[336631918,1724983852400,-151.0,0.00021918,2]
[336631919,1724983852409,-151.0,0.00021918,2]
[336631920,1724983852419,-151.0,0.00021918,2]
[336631921,1724983852429,-151.0,0.00021918,2]
[336631922,1724983852439,-151.0,0.00021918,2]
[336631923,1724983852449,-151.0,0.00021918,2]
[336631924,1724983852459,-151.0,0.00021918,2]
[336631925,1724983852470,-151.0,0.00021918,2]
[336631926,1724983852480,-282.714234,0.00021918,2]
[336631927,1724983852600,-31285.85,0.00022,14]
[336631928,1724983852611,-211.0,0.00022,5]
[336631929,1724983852622,-500.0,0.00022055,2]
[336631930,1724983852633,-150.112233,0.000221,4]
[336631931,1724983852644,-159.2766,0.00022141,7]
[336631932,1724983852653,-695.387899,0.00022141,2]
[336631933,1724983852664,-500.0,0.00022191,5]
[336631934,1724983852673,-500.0,0.00022191,5]
[336631935,1724983852684,-500.0,0.00022191,5]
[336631936,1724983852695,-829.52,0.00022191,5]
[336631937,1724983852705,-500.0,0.00022191,5]
[336631938,1724983852714,-500.0,0.00022191,5]
[336631939,1724983852724,-718.95,0.00022191,5]
[336631940,1724983852733,-500.0,0.00022191,5]
[336631941,1724983852743,-500.0,0.00022191,5]
[336631942,1724983852753,-624.21,0.00022191,5]
[336631943,1724983852762,-500.0,0.00022191,5]
[336631944,1724983852772,-811.43,0.00022191,5]
[336631945,1724983852781,-650.46,0.00022191,5]
[336631946,1724983852791,-674.29,0.00022191,5]
[336631947,1724983852803,-500.0,0.00022191,5]
[336631948,1724983852812,-2372.91,0.00022191,5]
[336631949,1724983852822,-7565.24,0.00022191,5]
[336631950,1724983852832,-544.68,0.00022191,5]
[336631951,1724983852845,-2711.47,0.00022191,5]
[336631952,1724983852855,-1810.15,0.00022191,5]
[336631953,1724983852865,-500.0,0.00022191,5]
[336631954,1724983852875,-500.0,0.00022191,5]
[336631955,1724983852884,-596.7,0.00022191,5]
[336631956,1724983852893,-732.32,0.00022191,5]
[336631957,1724983852906,-1028.9,0.00022191,5]
[336631958,1724983852917,-528.46,0.00022191,5]
[336631959,1724983852927,-500.0,0.00022191,5]
[336631960,1724983852937,-584.53,0.00022191,5]
[336631961,1724983852948,-500.0,0.00022191,5]
[336631962,1724983852961,-558.86,0.00022191,5]
[336631963,1724983852972,-1600.8,0.00022191,5]
[336631964,1724983852984,-500.0,0.00022191,5]
[336631965,1724983852995,-514.67,0.00022191,5]
[336631966,1724983853004,-722.8,0.00022191,5]
[336631967,1724983853015,-500.0,0.00022191,5]
[336631968,1724983853026,-500.0,0.00022191,5]
[336631969,1724983853038,-749.96,0.00022191,5]
[336631970,1724983853049,-585.55380055,0.00022191,5]
[336631971,1724983853060,-2936.91,0.00022191,5]
[336631972,1724983853070,-500.0,0.00022191,5]
[336631973,1724983853079,-538.9,0.00022191,5]
[336631974,1724983853089,-4606.99,0.00022191,5]
[336631975,1724983853098,-151.0,0.00022191,7]
[336631976,1724983853108,-1984.15,0.00022191,5]
[336631977,1724983853119,-500.0,0.00022191,5]
[336631978,1724983853134,-500.0,0.00022191,5]
[336631979,1724983853143,-636.04,0.00022191,5]
[336631980,1724983853153,-1566.77,0.00022191,5]
[336631981,1724983853165,-517.98,0.00022191,5]
[336631982,1724983853178,-500.0,0.00022191,5]
[336631983,1724983853190,-1831.81,0.00022191,5]
[336631984,1724983853202,-1072.33,0.00022191,5]
[336631985,1724983853214,-542.43,0.00022191,5]
[336631986,1724983853225,-1282.53,0.00022191,5]
[336631987,1724983853237,-743.43,0.00022191,5]
[336631988,1724983853248,-1221.57,0.00022191,5]
[336631989,1724983853258,-1461.81,0.00022191,5]
[336631990,1724983853269,-2207.85,0.00022191,5]
[336631991,1724983853280,-4413.6,0.00022191,5]
[336631992,1724983853291,-500.0,0.00022191,5]
[336631993,1724983853303,-2474.75,0.00022191,5]
[336631994,1724983853312,-500.0,0.00022191,5]
[336631995,1724983853323,-1712.24,0.000222,14]
[336631996,1724983853335,-654.326935,0.00022256,2]
[336631997,1724983853347,-2000.0,0.00022324,2]
[336631998,1724983853357,-500.0,0.00022329,2]
[336631999,1724983853367,-150.112233,0.000224,2]
[336632000,1724983853378,-695.387899,0.00022415,2]
[336632001,1724983853391,-159.436109,0.00022429,2]
[336632002,1724983853402,-500.0,0.00022465,5]
[336632003,1724983853412,-500.0,0.00022465,5]
[336632004,1724983853422,-500.0,0.00022465,5]
[336632005,1724983853431,-829.52,0.00022465,5]
[336632006,1724983853442,-500.0,0.00022465,5]
[336632007,1724983853452,-500.0,0.00022465,5]
[336632008,1724983853461,-718.95,0.00022465,5]
[336632009,1724983853471,-500.0,0.00022465,5]
[336632010,1724983853480,-500.0,0.00022465,5]
[336632011,1724983853490,-624.21,0.00022465,5]
[336632012,1724983853499,-500.0,0.00022465,5]
[336632013,1724983853508,-811.43,0.00022465,5]
[336632014,1724983853518,-650.46,0.00022465,5]
[336632015,1724983853527,-674.29,0.00022465,5]
[336632016,1724983853537,-500.0,0.00022465,5]
[336632017,1724983853547,-2372.91,0.00022465,5]
[336632018,1724983853558,-7565.24,0.00022465,5]
[336632019,1724983853568,-544.68,0.00022465,5]
[336632020,1724983853579,-2711.47,0.00022465,5]
[336632021,1724983853589,-1810.15,0.00022465,5]
[336632022,1724983853599,-500.0,0.00022465,5]
[336632023,1724983853608,-500.0,0.00022465,5]
[336632024,1724983853619,-596.7,0.00022465,5]
[336632025,1724983853630,-732.32,0.00022465,5]
[336632026,1724983853640,-1028.9,0.00022465,5]
[336632027,1724983853650,-528.46,0.00022465,5]
[336632028,1724983853661,-500.0,0.00022465,5]
[336632029,1724983853671,-584.53,0.00022465,5]
[336632030,1724983853681,-500.0,0.00022465,5]
[336632031,1724983853690,-558.86,0.00022465,5]
[336632032,1724983853701,-500.0,0.00022465,5]
[336632033,1724983853712,-1600.8,0.00022465,5]
[336632034,1724983853721,-514.67,0.00022465,5]
[336632035,1724983853731,-722.8,0.00022465,5]
[336632036,1724983853742,-500.0,0.00022465,5]
[336632037,1724983853753,-500.0,0.00022465,5]
[336632038,1724983853764,-749.96,0.00022465,5]
[336632039,1724983853773,-2936.91,0.00022465,5]
[336632040,1724983853783,-500.0,0.00022465,5]
[336632041,1724983853792,-538.9,0.00022465,5]
[336632042,1724983853804,-4606.99,0.00022465,5]
[336632043,1724983853813,-151.0,0.00022465,7]
[336632044,1724983853823,-1984.15,0.00022465,5]
[336632045,1724983853832,-500.0,0.00022465,5]
[336632046,1724983853843,-500.0,0.00022465,5]
[336632047,1724983853853,-636.04,0.00022465,5]
[336632048,1724983853863,-1566.77,0.00022465,5]
[336632049,1724983853874,-517.98,0.00022465,5]
[336632050,1724983853885,-500.0,0.00022465,5]
[336632051,1724983853894,-1831.81,0.00022465,5]
[336632052,1724983853905,-1072.33,0.00022465,5]
[336632053,1724983853914,-542.43,0.00022465,5]
[336632054,1724983853923,-1282.53,0.00022465,5]
[336632055,1724983853932,-743.43,0.00022465,5]
[336632056,1724983853942,-1221.57,0.00022465,5]
[336632057,1724983853951,-1461.81,0.00022465,5]
[336632058,1724983853961,-2207.85,0.00022465,5]
[336632059,1724983853970,-4413.6,0.00022465,5]
[336632060,1724983853980,-182.18397407,0.00022465,5]
[336632061,1724983853989,-2474.75,0.00022465,5]
[336632062,1724983853998,-500.0,0.00022465,5]
[336632063,1724983854008,-654.326935,0.00022534,2]
[336632064,1724983854017,-500.0,0.00022603,2]
[336632065,1724983854027,-695.387899,0.00022688,2]
[336632066,1724983854036,-500.0,0.00022739,5]
[336632067,1724983854048,-500.0,0.00022739,5]
[336632068,1724983854058,-500.0,0.00022739,5]
[336632069,1724983854067,-829.52,0.00022739,5]
[336632070,1724983854076,-500.0,0.00022739,5]
[336632071,1724983854086,-500.0,0.00022739,5]
[336632072,1724983854095,-718.95,0.00022739,5]
[336632073,1724983854105,-500.0,0.00022739,5]
[336632074,1724983854115,-500.0,0.00022739,5]
[336632075,1724983854128,-624.21,0.00022739,5]
[336632076,1724983854140,-500.0,0.00022739,5]
[336632077,1724983854150,-811.43,0.00022739,5]
[336632078,1724983854161,-650.46,0.00022739,5]
[336632079,1724983854171,-674.29,0.00022739,5]
[336632080,1724983854182,-500.0,0.00022739,5]
[336632081,1724983854192,-2372.91,0.00022739,5]
[336632082,1724983854202,-7565.24,0.00022739,5]
[336632083,1724983854215,-544.68,0.00022739,5]
[336632084,1724983854225,-2711.47,0.00022739,5]
[336632085,1724983854235,-1810.15,0.00022739,5]
[336632086,1724983854244,-500.0,0.00022739,5]
[336632087,1724983854254,-500.0,0.00022739,5]
[336632088,1724983854264,-596.7,0.00022739,5]
[336632089,1724983854274,-732.32,0.00022739,5]
[336632090,1724983854284,-1028.9,0.00022739,5]
[336632091,1724983854294,-528.46,0.00022739,5]
[336632092,1724983854307,-500.0,0.00022739,5]
[336632093,1724983854316,-584.53,0.00022739,5]
[336632094,1724983854326,-514.69197198,0.00022739,5]
[336632095,1724983854336,-558.86,0.00022739,5]
[336632096,1724983854346,-500.0,0.00022739,5]
[336632097,1724983854355,-1600.8,0.00022739,5]
[336632098,1724983854364,-514.67,0.00022739,5]
[336632099,1724983854374,-722.8,0.00022739,5]
[336632100,1724983854383,-500.0,0.00022739,5]
[336632101,1724983854393,-500.0,0.00022739,5]
[336632102,1724983854402,-749.96,0.00022739,5]
[336632103,1724983854412,-2936.91,0.00022739,5]
[336632104,1724983854421,-500.0,0.00022739,5]
[336632105,1724983854431,-538.9,0.00022739,5]
[336632106,1724983854442,-4606.99,0.00022739,5]
[336632107,1724983854451,-1984.15,0.00022739,5]
[336632108,1724983854460,-500.0,0.00022739,5]
[336632109,1724983854470,-500.0,0.00022739,5]
[336632110,1724983854480,-636.04,0.00022739,5]
[336632111,1724983854490,-1566.77,0.00022739,5]
[336632112,1724983854500,-517.98,0.00022739,5]
[336632113,1724983854511,-500.0,0.00022739,5]
[336632114,1724983854520,-1831.81,0.00022739,5]
[336632115,1724983854530,-1072.33,0.00022739,5]
[336632116,1724983854538,-542.43,0.00022739,5]
[336632117,1724983854548,-1282.53,0.00022739,5]
[336632118,1724983854558,-743.43,0.00022739,5]
[336632119,1724983854567,-1221.57,0.00022739,5]
[336632120,1724983854577,-1461.81,0.00022739,5]